fUST/lending_fUST_20250213
["ID","MTS","AMOUNT","RATE_DAILY","PERIOD"]
[352919211,1739423439059,-49.53269862,0.00013,2]
[352919212,1739423439073,-101.46730138,0.00013,2]
[352919213,1739423439083,-272.507124,0.00013,2]
[352919214,1739423439092,-158.980233,0.00013,2]
[352919215,1739423439101,-151.0,0.00013,2]
[352919216,1739423439111,-158.980233,0.00013,2]
[352919217,1739423439121,-158.980233,0.00013,2]
[352919218,1739423439131,-158.980233,0.00013,2]
[352919219,1739423439140,-151.0,0.00013,2]
[352919220,1739423439150,-158.980233,0.00013,2]
[352919221,1739423439159,-158.980233,0.00013,2]
[352919222,1739423439169,-158.980233,0.00013,2]
[352919223,1739423439178,-158.980233,0.00013,2]
[352919224,1739423439188,-158.980233,0.00013,2]
[352919225,1739423439197,-158.980233,0.00013,2]
[352919226,1739423439207,-158.980233,0.00013,2]
[352919227,1739423439216,-158.980233,0.00013,2]
[352919228,1739423439226,-158.980233,0.00013,2]
[352919229,1739423439239,-158.980233,0.00013,2]
[352919230,1739423439249,-158.980233,0.00013,2]
[352919231,1739423439259,-158.980233,0.00013,2]
[352919232,1739423439268,-158.980233,0.00013,2]
[352919233,1739423439278,-158.980233,0.00013,2]
[352919234,1739423439287,-158.980233,0.00013,2]
[352919235,1739423439297,-158.980227,0.00013,2]
[352919236,1739423439307,-151.0,0.00013,2]
[352919237,1739423439316,-1446.030036,0.00013,2]
[352919238,1739423439326,-1446.030036,0.00013,2]
[352919239,1739423439336,-1446.030036,0.00013,2]
[352919240,1739423439346,-1446.030036,0.00013,2]
[352919241,1739423439355,-1446.030036,0.00013,2]
[352919242,1739423439368,-1446.030036,0.00013,2]
[352919243,1739423439378,-1446.030036,0.00013,2]
[352919244,1739423439387,-1446.030036,0.00013,2]
[352919245,1739423439397,-1446.030036,0.00013,2]
[352919247,1739423439407,-1446.030036,0.00013,2]
[352919248,1739423439416,-1446.030036,0.00013,2]
[352919249,1739423439426,-1446.030036,0.00013,2]
[352919250,1739423439436,-1446.030036,0.00013,2]
[352919251,1739423439445,-1446.030036,0.00013,2]
[352919252,1739423439455,-1446.030036,0.00013,2]
[352919253,1739423439465,-1138.55427846,0.00013,2]
[352919255,1739423439478,-307.47575754,0.00013,2]
[352919256,1739423439488,-1446.030036,0.00013,2]
[352919257,1739423439497,-1446.030036,0.00013,2]
[352919258,1739423439507,-611.45686645,0.00013,2]
[352919267,1739423440248,-180.3248126,0.00013,5]
[352919268,1739423440258,-834.57316955,0.00013,2]
[352919269,1739423440268,-992.58201785,0.00013,2]
[352919270,1739423440304,-453.44802415,0.00013,2]
[352919271,1739423440314,-151.0,0.00013,2]
[352919272,1739423440323,-151.0,0.00013,2]
[352919273,1739423440334,-151.0,0.00013,2]
[352919274,1739423440345,-151.0,0.00013,2]
[352919275,1739423440355,-151.0,0.00013,2]
[352919276,1739423440365,-151.0,0.00013,2]
[352919277,1739423440377,-151.0,0.00013,2]
[352919278,1739423440388,-151.0,0.00013,2]
[352919279,1739423440400,-151.0,0.00013,2]
[352919280,1739423440410,-151.0,0.00013,2]
[352919281,1739423440420,-135.57543152,0.00013,2]
[352919302,1739423442950,-15.42456848,0.00013,2]
[352919303,1739423442960,-151.0,0.00013,2]
[352919304,1739423442970,-246.416041,0.00013,2]
[352919305,1739423442981,-153.0,0.00013,2]
[352919306,1739423442990,-153.0,0.00013,2]
[352919307,1739423443000,-96.15939052,0.00013,2]
[352919308,1739423443011,-136.06989248,0.00013,2]
[352919309,1739423443021,-232.229283,0.00013,2]
[352919315,1739423443120,-232.229283,0.00013,2]
[352919316,1739423443130,-11.47652552,0.00013,2]
[352919317,1739423443144,-220.75275748,0.00013,2]
[352919318,1739423443154,-232.229283,0.00013,2]
[352919319,1739423443164,-232.229283,0.00013,2]
[352919320,1739423443174,-232.229283,0.00013,2]
[352919321,1739423443184,-232.229283,0.00013,2]
[352919322,1739423443193,-232.229283,0.00013,2]
[352919323,1739423443203,-232.229283,0.00013,2]
[352919324,1739423443215,-232.229283,0.00013,2]
[352919325,1739423443227,-232.229283,0.00013,2]
[352919326,1739423443242,-232.229283,0.00013,2]
[352919327,1739423443253,-232.229283,0.00013,2]
[352919328,1739423443263,-232.229283,0.00013,2]
[352919329,1739423443278,-232.229283,0.00013,2]
[352919330,1739423443291,-232.229283,0.00013,2]
[352919331,1739423443301,-232.229283,0.00013,2]
[352919332,1739423443311,-232.229283,0.00013,2]
[352919333,1739423443323,-232.229276,0.00013,2]
[352919334,1739423443334,-151.0,0.00013,2]
[352919335,1739423443344,-151.0,0.00013,2]
[352919336,1739423443354,-151.0,0.00013,2]
[352919337,1739423443364,-151.0,0.00013,2]
[352919338,1739423443376,-151.0,0.00013,2]
[352919339,1739423443386,-151.0,0.00013,2]
[352919340,1739423443395,-151.0,0.00013,2]
[352919341,1739423443404,-185.0,0.00013,4]
[352919342,1739423443414,-155.974328,0.00013,2]
[352919343,1739423443423,-151.0,0.00013,2]
[352919344,1739423443432,-151.0,0.00013,2]
[352919345,1739423443442,-151.0,0.00013,2]
[352919346,1739423443451,-185.0,0.00013,4]
[352919347,1739423443460,-151.0,0.00013,2]
[352919348,1739423443470,-151.0,0.00013,2]
[352919349,1739423443480,-151.0,0.00013,2]
[352919350,1739423443489,-151.0,0.00013,2]
[352919351,1739423443499,-151.0,0.00013,2]
[352919352,1739423443509,-151.0,0.00013,2]
[352919353,1739423443522,-151.0,0.00013,2]
[352919354,1739423443531,-151.0,0.00013,2]
[352919355,1739423443541,-151.0,0.00013,2]
[352919356,1739423443551,-151.0,0.00013,2]
[352919357,1739423443561,-185.370636,0.00013,2]
[352919358,1739423443571,-151.0,0.00013,2]
[352919359,1739423443581,-151.0,0.00013,2]
[352919360,1739423443590,-151.0,0.00013,2]
[352919361,1739423443600,-151.0,0.00013,2]
[352919362,1739423443610,-151.0,0.00013,2]
[352919363,1739423443622,-151.0,0.00013,2]
[352919364,1739423443631,-151.0,0.00013,2]
[352919365,1739423443641,-175.116879,0.00013,2]
[352919366,1739423443651,-726.11492424,0.00013,2]
[352919376,1739423446059,-634.03957376,0.00013,2]
[352919377,1739423446070,-1360.154498,0.00013,2]
[352919378,1739423446080,-1360.154498,0.00013,2]
[352919379,1739423446090,-1360.154498,0.00013,2]
[352919380,1739423446100,-1360.154498,0.00013,2]
[352919381,1739423446109,-1360.154498,0.00013,2]
[352919382,1739423446119,-1360.154498,0.00013,2]
[352919383,1739423446130,-1360.154498,0.00013,2]
[352919384,1739423446140,-1360.154498,0.00013,2]
[352919385,1739423446151,-1360.154498,0.00013,2]
[352919386,1739423446160,-1360.154498,0.00013,2]
[352919387,1739423446171,-1360.154498,0.00013,2]
[352919388,1739423446181,-1360.154498,0.00013,2]
[352919389,1739423446191,-151.0,0.00013,2]
[352919390,1739423446201,-1360.154498,0.00013,2]
[352919391,1739423446210,-151.0,0.00013,2]
[352919392,1739423446220,-1360.154498,0.00013,2]
[352919393,1739423446230,-151.0,0.00013,2]
[352919394,1739423446239,-699.04202157,0.00013,2]
[352919535,1739424632414,-2589.73021472,9.899e-05,2]
[352919536,1739424632425,-300.0,9.999e-05,2]
[352919537,1739424632435,-1990.12501911,0.0001,2]
[352919538,1739424632474,-242.87498089,0.0001,2]
[352919539,1739424632483,-2069.92501911,0.0001,2]
[352919540,1739424632496,-160.07498089,0.0001,2]
[352919541,1739424632505,-586.26057711,0.0001,2]
[352919542,1739424632539,-1000.65676696,0.0001,2]
[352919543,1739424632551,-643.08265593,0.0001,2]
[352919544,1739424632561,-2230.0,0.0001,2]
[352919545,1739424632571,-397.924082,0.00010685,2]
[352919546,1739424632581,-420.0,0.00010999,2]
[352919547,1739424632591,-24451.04084637,0.00011965,2]
[352919611,1739424638079,-448.95915363,0.00011965,2]
[352919614,1739424638090,-587.0,0.00012099,2]
[352919615,1739424638100,-154.514,0.0001235,2]
[352919616,1739424638109,-354.9488798,0.000124,2]
[352919617,1739424638118,-153.0,0.000124,2]
[352919618,1739424638129,-153.0,0.000124,2]
[352919619,1739424638139,-153.0,0.000124,2]
[352919620,1739424638149,-153.0,0.000124,2]
[352919621,1739424638158,-792.9314504,0.00012869,2]
[352919622,1739424638168,-2644.75944411,0.00012886,2]
[352919623,1739424638178,-153.0,0.000129,2]
[352919625,1739424638187,-153.0,0.000129,2]
[352919626,1739424638197,-354.9488798,0.000129,2]
[352919627,1739424638207,-160.52471659,0.000129,2]
[352919628,1739424638216,-160.52471657,0.00012972,2]
[352919629,1739424638225,-284.4583684,0.00012999,2]
[352919631,1739424638235,-183.7602394,0.00013,5]
[352919633,1739424638245,-208.0776975,0.00013,2]
[352919634,1739424638255,-153.3982474,0.00013,2]
[352919635,1739424638265,-153.0,0.00013,2]
[352919636,1739424638275,-153.0,0.00013,2]
[352919637,1739424638285,-154.7221534,0.00013,2]
[352919638,1739424638295,-652.5502581,0.00013,2]
[352919639,1739424638305,-153.0,0.00013,2]
[352919640,1739424638315,-354.9488798,0.00013,2]
[352919641,1739424638324,-153.0,0.00013,2]
[352919642,1739424638344,-153.0,0.00013,2]
[352919643,1739424638356,-153.0,0.00013,2]
[352919644,1739424638367,-153.0,0.00013,2]
[352919645,1739424638378,-354.9488798,0.00013,2]
[352919646,1739424638390,-153.0,0.00013,2]
[352919647,1739424638401,-354.9488798,0.00013,2]
[352919648,1739424638412,-153.0,0.00013,2]
[352919649,1739424638424,-153.0,0.00013,2]
[352919650,1739424638435,-153.0,0.00013,2]
[352919651,1739424638445,-153.0,0.00013,2]
[352919652,1739424638455,-354.9488798,0.00013,2]
[352919653,1739424638465,-354.9488798,0.00013,2]
[352919654,1739424638475,-153.0,0.00013151,2]
[352919655,1739424638485,-153.0,0.00013151,2]
[352919656,1739424638495,-215.9004297,0.00013151,2]
[352919657,1739424638505,-215.9004297,0.00013151,2]
[352919658,1739424638515,-153.0,0.00013151,2]
[352919659,1739424638526,-215.9004297,0.00013151,2]
[352919660,1739424638535,-153.0,0.00013151,2]
[352919661,1739424638546,-215.9004297,0.00013151,2]
[352919662,1739424638556,-215.9004297,0.00013151,2]
[352919663,1739424638567,-215.9004297,0.00013151,2]
[352919664,1739424638578,-153.0,0.00013151,2]
[352919665,1739424638588,-215.9004297,0.00013151,2]
[352919666,1739424638598,-153.0,0.00013151,2]
[352919667,1739424638608,-153.0,0.00013151,2]
[352919668,1739424638618,-153.0,0.00013151,2]
[352919669,1739424638628,-153.0,0.00013151,2]
[352919670,1739424638638,-1000.72373972,0.00013199,2]
[352919671,1739424638648,-354.9488798,0.000132,2]
[352919672,1739424638658,-215.9004297,0.00013233,2]
[352919673,1739424638669,-154.5736464,0.00013233,2]
[352919674,1739424638678,-215.9004297,0.00013233,2]
[352919675,1739424638688,-215.9004297,0.00013233,2]
[352919676,1739424638698,-215.9004297,0.00013233,2]
[352919677,1739424638708,-215.9004297,0.00013233,2]
[352919678,1739424638717,-215.9004297,0.00013233,2]
[352919679,1739424638726,-215.9004297,0.00013233,2]
[352919680,1739424638737,-215.9004297,0.00013233,2]
[352919681,1739424638747,-215.9004297,0.00013233,2]
[352919682,1739424638756,-215.9004297,0.00013233,2]
[352919683,1739424638765,-215.9004297,0.00013233,2]
[352919684,1739424638899,-215.9004297,0.00013233,2]
[352919685,1739424638909,-308.1914392,0.00013288,2]
[352919686,1739424638919,-310.4245019,0.00013288,2]
[352919687,1739424638930,-823.0,0.00013309,2]
[352919688,1739424638942,-507.24388869,0.000134,2]
[352919689,1739424638952,-500.0,0.00013408,2]
[352919690,1739424638962,-500.0,0.000135,2]
[352919691,1739424638971,-251.02935711,0.000135,2]
[352919692,1739424638981,-500.0,0.000135,2]
[352919693,1739424638990,-160.0,0.0001353,3]
[352919694,1739424639000,-162.0,0.00013539,2]
[352919695,1739424639010,-162.0,0.00013539,2]
[352919696,1739424639020,-162.0,0.00013539,2]
[352919697,1739424639029,-162.0,0.00013539,2]
[352919698,1739424639039,-162.0,0.00013539,2]
[352919699,1739424639048,-162.0,0.00013539,2]
[352919700,1739424639058,-162.0,0.00013539,2]
[352919701,1739424639067,-162.0,0.00013539,2]
[352919702,1739424639077,-162.0,0.00013539,2]
[352919703,1739424639087,-162.0,0.00013539,2]
[352919704,1739424639096,-162.0,0.00013539,2]
[352919705,1739424639105,-173.87,0.00013539,2]
[352919706,1739424639115,-157.0,0.00013539,2]
[352919707,1739424639125,-157.0,0.00013539,2]
[352919708,1739424639138,-157.0,0.00013539,2]
[352919709,1739424639148,-157.0,0.00013539,2]
[352919710,1739424639158,-157.0,0.00013539,2]
[352919711,1739424639167,-157.0,0.00013539,2]
[352919712,1739424639177,-157.0,0.00013539,2]
[352919713,1739424639190,-157.0,0.00013539,2]
[352919714,1739424639199,-157.0,0.00013539,2]
[352919715,1739424639209,-157.0,0.00013539,2]
[352919716,1739424639221,-157.0,0.00013539,2]
[352919717,1739424639231,-157.0,0.00013539,2]
[352919718,1739424639241,-157.0,0.00013539,2]
[352919719,1739424639251,-157.0,0.00013539,2]
[352919720,1739424639261,-157.0,0.00013539,2]
[352919721,1739424639271,-157.0,0.00013539,2]
[352919722,1739424639281,-157.0,0.00013539,2]
[352919723,1739424639291,-157.0,0.00013539,2]
[352919724,1739424639301,-168.19,0.00013539,2]
[352919725,1739424639311,-160.52471657,0.00013693,2]
[352919726,1739424639320,-191.762532,0.00013699,2]
[352919727,1739424639330,-500.0,0.000137,7]
[352919728,1739424639339,-500.0,0.000137,7]
[352919729,1739424639349,-228.85,0.000137,7]
[352919730,1739424639359,-500.0,0.000137,7]
[352919731,1739424639369,-150.595,0.00013793,2]
[352919732,1739424639379,-538.544,0.00013793,2]
[352919733,1739424639392,-1975.111,0.00013793,2]
[352919734,1739424639401,-2302.825,0.00013793,2]
[352919735,1739424639411,-348.90077404,0.00013797,2]
[352919736,1739424639421,-436.87591052,0.00013929,2]
[352919737,1739424639431,-150.121,0.00013969,2]
[352919738,1739424639441,-150.309,0.00013969,2]
[352919739,1739424639451,-482.81188207,0.00013991,2]
[352919740,1739424639462,-1000.0,0.00014048,2]
[352919741,1739424639472,-426.25855353,0.00014048,2]
[352919742,1739424639482,-215.9004297,0.00014055,2]
[352919743,1739424639493,-215.9004297,0.00014055,2]
[352919744,1739424639503,-151.0,0.00014055,2]
[352919745,1739424639514,-226.677812,0.00014055,2]
[352919746,1739424639524,-151.0,0.00014055,2]
[352919747,1739424639534,-196.366194,0.00014055,2]
[352919748,1739424639544,-151.0,0.00014055,2]
[352919749,1739424639554,-151.0,0.00014055,2]
[352919750,1739424639565,-151.0,0.00014055,2]
[352919751,1739424639575,-151.0,0.00014055,2]
[352919752,1739424639585,-260.525953,0.00014055,2]
[352919753,1739424639595,-260.525953,0.00014055,2]
[352919754,1739424639605,-154.6993501,0.0001411,2]
[352919755,1739424639615,-160.0,0.00014265,4]
[352919756,1739424639625,-275.713,0.00014266,2]
[352919757,1739424639634,-151.0,0.000143,2]
[352919758,1739424639645,-7438.69753278,0.00014305,2]
[352919759,1739424639655,-151.0,0.00014327,2]
[352919760,1739424639665,-160.52471657,0.00014415,2]
[352919761,1739424639677,-151.0,0.000145,2]
[352919762,1739424639686,-24551.68437945,0.000145,15]
[352919765,1739424639877,-967.14562055,0.000145,15]
[352919766,1739424639887,-288.52139,0.000145,2]
[352919767,1739424639897,-151.0,0.000145,2]
[352919768,1739424639909,-151.0,0.000145,2]
[352919769,1739424639919,-251.703163,0.000145,2]
[352919770,1739424639929,-151.0,0.000145,2]
[352919771,1739424639943,-151.0,0.000145,2]
[352919772,1739424639952,-151.0,0.000145,2]
[352919773,1739424639962,-260.525953,0.000145,2]
[352919774,1739424639972,-260.525953,0.000145,2]
[352919776,1739424639982,-497.0,0.0001451,2]
[352919777,1739424639993,-236.73968215,0.000146,4]
[352919778,1739424640003,-200.0,0.000146,6]
[352919779,1739424640014,-200.0,0.000146,8]
[352919780,1739424640024,-200.0,0.000146,6]
[352919781,1739424640034,-200.0,0.000146,7]
[352919782,1739424640043,-200.0,0.000146,6]
[352919783,1739424640052,-200.0,0.000146,8]
[352919784,1739424640064,-200.0,0.000146,7]
[352919785,1739424640074,-200.0,0.000146,6]
[352919786,1739424640084,-200.0,0.000146,6]
[352919787,1739424640094,-200.0,0.000146,5]
[352919789,1739424640202,-200.0,0.000146,8]
[352919790,1739424640213,-1152.0,0.0001464,2]
[352919791,1739424640222,-465.8905941,0.0001469,2]
[352919792,1739424640232,-4040.00720394,0.000147,5]
[352919793,1739424640243,-6758.87363043,0.000147,2]
[352919794,1739424640255,-4069.08304494,0.000147,2]
[352919795,1739424640268,-3538.52183453,0.000147,2]
[352919817,1739424640543,-398.076,0.000147,2]
[352919819,1739424640557,-334.98124228,0.000147,2]
[352919827,1739424640645,-566.17152,0.000147,2]
[352920059,1739424643081,-2640.79952754,0.000147,2]
[352920072,1739424643190,-604.0,0.000147,2]
[352920351,1739424646105,-215.9004297,0.00013233,2]
[352920353,1739424646116,-9193.28657232,0.000147,2]
[352920355,1739424646127,-151.0,0.000147,2]
[352920357,1739424646138,-151.0,0.000147,2]
[352920359,1739424646148,-151.0,0.000147,2]
[352920361,1739424646158,-151.0,0.000147,2]
[352920364,1739424646171,-151.0,0.000147,2]
[352920366,1739424646181,-260.525953,0.000147,2]
[352920368,1739424646192,-260.525953,0.000147,2]
[352920370,1739424646202,-1254.83772071,0.00014747,7]
[352920372,1739424646213,-195.45281884,0.00014769,2]
[352920374,1739424646222,-500.0,0.00014769,2]
[352920376,1739424646232,-500.0,0.00014769,2]
[352920378,1739424646242,-500.0,0.00014769,2]
[352920380,1739424646252,-589.99413548,0.00014769,2]
[352920382,1739424646262,-6040.1624063,0.0001477,5]
[352920384,1739424646271,-61018.73206628,0.0001477,2]
[352920945,1739425832395,-279.83021472,0.00010685,2]
[352920956,1739425832509,-118.19766328,0.00010685,2]
[352920958,1739425832519,-500.0,0.00013408,2]
[352920960,1739425832530,-163.92733672,0.00013512,2]
[352920966,1739425832573,-2309.9,0.00013512,2]
[352921048,1739425833478,50000.0,0.00013122,28]
[352921087,1739425838254,-4964.87019606,0.00013512,2]
[352921088,1739425838264,-300.0,0.00013673,2]
[352921089,1739425838276,-1970.0,0.00013674,2]
[352921090,1739425838286,-538.0,0.00013674,2]
[352921091,1739425838297,-2293.0,0.00013674,2]
[352921092,1739425838308,-399.448,0.00013674,2]
[352921093,1739425838321,-823.8964128,0.00014622,2]
[352921094,1739425838330,-160.52471657,0.0001468,2]
[352921095,1739425838340,-237.16590608,0.00014698,2]
[352921096,1739425838349,-220.57,0.00014769,2]
[352921097,1739425838359,-500.0,0.00014769,2]
[352921098,1739425838369,-500.0,0.00014769,2]
[352921099,1739425838379,-500.0,0.00014769,2]
[352921100,1739425838389,-500.0,0.00014769,2]
[352921101,1739425838399,-488.52500316,0.00014769,2]
[352921102,1739425838409,-500.0,0.00014769,2]
[352921103,1739425838419,-500.0,0.00014769,2]
[352921104,1739425838428,-500.0,0.00014769,2]
[352921105,1739425838438,-500.0,0.00014769,2]
[352921106,1739425838448,-500.0,0.00014769,2]
[352921107,1739425838457,-419.49814918,0.00014769,2]
[352921108,1739425838466,-500.0,0.00014769,2]
[352921109,1739425838476,-503.07686475,0.00014769,2]
[352921110,1739425838486,-500.0,0.00014769,2]
[352921111,1739425838496,-500.0,0.00014769,2]
[352921112,1739425838506,-360.68282082,0.00014769,2]
[352921113,1739425838516,-500.0,0.00014769,2]
[352921114,1739425838526,-512.56606521,0.00014769,2]
[352921115,1739425838536,-500.0,0.00014769,2]
[352921116,1739425838545,-500.0,0.00014769,2]
[352921117,1739425838556,-500.0,0.00014769,2]
[352921118,1739425838566,-500.0,0.00014769,2]
[352921119,1739425838576,-70195.6817197,0.0001477,2]
[352921148,1739425843399,-12914.45902052,0.0001477,2]
[352921474,1739427038642,-378.126484,0.00010685,2]
[352921476,1739427038651,-300.0,0.00012881,2]
[352921478,1739427038661,-342.99294346,0.00012882,2]
[352921570,1739427043541,-9546.840003,0.00012882,2]
[352921586,1739427084062,1000.0,0.00016,120]
[352921671,1739428232921,-1235.0,0.00010367,2]
[352921672,1739428232931,-379.220159,0.00010685,2]
[352921673,1739428232941,-200.0,0.000128,4]
[352921674,1739428232950,-200.0,0.000128,5]
[352921675,1739428232960,-3020.08120315,0.00012881,5]
[352921676,1739428232969,-2020.00360197,0.00012881,5]
[352921677,1739428232981,-5288.25721636,0.00012882,2]
[352921678,1739428233005,-1001.84784655,0.00012882,2]
[352921704,1739428238769,-1476.945,0.00012882,2]
[352921711,1739428238846,-1438.43779679,0.00012882,2]
[352921713,1739428238858,-974.5845965,0.00012882,2]
[352921714,1739428238924,-4830.09459734,0.00012882,2]
[352921716,1739428238934,-400.7518766,0.00013,2]
[352921718,1739428238944,-165.76681782,0.00013226,5]
[352921720,1739428238954,-500.0,0.00013408,2]
[352921721,1739428238963,-1510.04060157,0.00013563,5]
[352921722,1739428238973,-2293.0,0.00013563,2]
[352921723,1739428238986,-396.0,0.00013563,2]
[352921724,1739428238995,-150.183,0.00013674,2]
[352921725,1739428239005,-7438.69753278,0.00013786,2]
[352921726,1739428239015,-160.52471657,0.000139,2]
[352921727,1739428239026,-1000.0,0.00014,14]
[352921728,1739428239036,-216.72,0.00014269,2]
[352921729,1739428239046,-500.0,0.00014399,2]
[352921730,1739428239055,-500.0,0.00014399,2]
[352921731,1739428239065,-500.0,0.00014399,2]
[352921733,1739428239074,-175.24668509,0.00014399,2]
[352921734,1739428239084,-500.0,0.00014399,2]
[352921735,1739428239094,-24.11640939,0.00014399,2]
[352921736,1739428239106,-475.88359061,0.00014399,2]
[352921737,1739428239116,-500.0,0.00014399,2]
[352921738,1739428239125,-500.0,0.00014399,2]
[352921739,1739428239136,-500.0,0.00014399,2]
[352921740,1739428239147,-300.31362874,0.00014399,2]
[352921741,1739428239158,-500.0,0.00014399,2]
[352921742,1739428239168,-500.0,0.00014399,2]
[352921743,1739428239178,-176.52828197,0.00014399,2]
[352921744,1739428239188,-500.0,0.00014399,2]
[352921745,1739428239198,-500.0,0.00014399,2]
[352921746,1739428239207,-500.0,0.00014399,2]
[352921747,1739428239216,-289.63816392,0.00014399,2]
[352921748,1739428239225,-500.0,0.00014399,2]
[352921749,1739428239235,-20216.38537633,0.000144,2]
[352921776,1739428243701,-984.7674761,0.000144,2]
[352921814,1739428246647,-1279.9,0.000144,2]
[352921815,1739428246660,-1092.9310008,0.000144,2]
[352921820,1739428435608,-321.95002132,0.00017,120]
[352921821,1739428435633,-1678.04997868,0.00017,120]
[352921822,1739428583500,1072.85502742,0.00016,120]
[352921824,1739428640901,500.0,0.00016,120]
[352921825,1739428732634,1000.0,0.00016,120]
[352921880,1739429431981,-357.78135085,9.66e-05,2]
[352921881,1739429431991,-647.89834355,9.758e-05,2]
[352921883,1739429432003,-129.0686677,9.758e-05,2]
[352921885,1739429432013,-360.259151,0.00010685,2]
[352921887,1739429432023,-4087.36,0.00010959,2]
[352921889,1739429432032,-300.0,0.00013131,2]
[352921891,1739429432041,-1155.95165719,0.00013132,2]
[352921894,1739429432061,-415.0675,0.00013132,2]
[352921896,1739429432073,-14460.30384476,0.00013132,2]
[352921898,1739429432093,-314.54692683,0.00013132,2]
[352921975,1739429438170,-2175.35987812,0.00013132,2]
[352921976,1739429438212,-6378.7701931,0.00013132,2]
[352921977,1739429438222,-1980.42,0.0001335,2]
[352921978,1739429438232,-500.0,0.00013408,2]
[352921979,1739429438242,-160.52471657,0.00013413,2]
[352921980,1739429438253,-1970.0,0.00013513,2]
[352921981,1739429438264,-538.0,0.00013513,2]
[352921982,1739429438276,-2293.0,0.00013513,2]
[352921983,1739429438285,-154.3070732,0.00013671,2]
[352921984,1739429438295,-287.9486019,0.00013678,2]
[352921985,1739429438304,-176.4513059,0.00013678,2]
[352921986,1739429438314,-154.6488878,0.00013678,2]
[352921987,1739429438324,-154.6488878,0.00013678,2]
[352921988,1739429438337,-153.0,0.00013678,2]
[352921989,1739429438347,-153.0,0.00013678,2]
[352921990,1739429438357,-153.0,0.00013678,2]
[352921991,1739429438366,-153.0,0.00013678,2]
[352921992,1739429438377,-202.9539992,0.00013952,2]
[352921993,1739429438387,-153.0,0.00013952,2]
[352921994,1739429438395,-153.0,0.00013952,2]
[352921995,1739429438405,-153.0,0.00013952,2]
[352921996,1739429438417,-2164.32718853,0.00014,7]
[352921997,1739429438427,-205.588,0.0001427,2]
[352921998,1739429438436,-420.0,0.00014398,2]
[352921999,1739429438446,-318.66250715,0.00014399,2]
[352922000,1739429438456,-500.0,0.00014399,2]
[352922001,1739429438465,-222.34214223,0.00014399,2]
[352922002,1739429438475,-500.0,0.00014399,2]
[352922003,1739429438484,-255.23769833,0.00014399,2]
[352922004,1739429438494,-1616.6158517,0.000144,5]
[352922005,1739429438506,-1906.24248835,0.000144,5]
[352922006,1739429438516,-755.02030079,0.000144,5]
[352922007,1739429438527,-524.77131538,0.000144,2]
[352922008,1739429438536,-524.77131538,0.000144,2]
[352922009,1739429438545,-524.77131538,0.000144,2]
[352922010,1739429438555,-524.77131538,0.000144,2]
[352922011,1739429438565,-524.77131538,0.000144,2]
[352922012,1739429438574,-524.77131538,0.000144,2]
[352922013,1739429438584,-524.77131538,0.000144,2]
[352922014,1739429438593,-524.77131538,0.000144,2]
[352922015,1739429438603,-524.77131538,0.000144,2]
[352922016,1739429438612,-524.77131538,0.000144,2]
[352922017,1739429438621,-524.77131538,0.000144,2]